Cogmind - Beta 17 --- EXPLORER MODE // 2026.07.02 @ 13:29:33 Player: Deloads Result: Destroyed by P-80 Master with Gamma Rifle Performance ------------- Evolutions (7) 3500 Regions Visited (12) 2400 Robots Destroyed (126) 630 Value Destroyed (5245) 5245 Prototype IDs (24) 480 Alien Tech Used (0) 0 Bonus (881) 881 TOTAL SCORE: 13136 Bonus ------- High Alert Combat Kills 519 Entered Garrisons 200 Aligned with FarCom 300 Friendly Fire -138 Cogmind --------- Core Integrity 0/1300 Matter 43/300 Energy 5/100 System Corruption 14% Temperature Cool (0) Movement Core (150) Ox2 Location -3/Research Parts ------- > --- POWER (2) -------- (None) > --- PROPULSION (6) --- (None) > --- UTILITY (12) ----- ECM Suite Advanced ECM Suite Improved Weapon Shielding > --- WEAPON (2) ------- (None) > --- INVENTORY (5) ---- (None) Peak State ------------ > --- POWER ------------ Reinforced Deuterium Engine Light Angular Momentum Engine > --- PROPULSION ------- Armored Medium Treads Heavy Treads > --- UTILITY ---------- Lightpack 2.0 Large Matter Pod Targeting Computer Targeting Computer Improved Medium Armor Plating Hacking Suite Hacking Suite Hacking Suite System Shield > --- WEAPON ----------- Rocket Launcher Long-range Missile Launcher > --- INVENTORY -------- Micro Nuclear Core Micro Nuclear Core Light Treads Light Treads Medium Treads Medium Treads Improved Medium Treads Carbon-fiber Leg Flight Unit Flight Unit VTOL Module VTOL Module VTOL Module VTOL Module Heat Sink Medium Storage Unit Large Storage Unit High-capacity Storage Unit Advanced Weight Redist. System Signal Interpreter Transport Network Coupler Kinecellerator ECM Suite Advanced ECM Suite Improved Utility Shielding Improved Light Armor Plating Hacking Suite Hacking Suite Gatling Laser Assault Rifle Light Assault Rifle Heavy Assault Rifle Rocket Launcher Rocket Launcher Remote Datajack [Rating: 91] Favorites ----------- Power Ion Engine Engine Ion Engine Power Core Light Fission Core Propulsion Light Treads Treads Light Treads Leg Shield Leg Flight Unit VTOL Module Utility Targeting Computer Device Seismic Detector Storage Lightpack 2.0 Processor Targeting Computer Hackware Hacking Suite Protection Improved Light Armor Plating Weapon Rocket Launcher Energy Gun Small Laser Energy Cannon Enhanced Nova Cannon Ballistic Gun Light Assault Rifle Launcher Rocket Launcher Special Weapon Mining Laser Slashing Weapon Greatsword Build | -11 -10 -10 -10 -9 -8 -7 -6 -5 -5 -5 -4 -3 ------- Run | Yrd Mat Min Exi Min Mat Fac Fac Fac Gar Fac Fac Res Slots Evolved 15 | . 1 . . . 4 2 2 2 . . 2 2 Power 1 | . . . . . . 1 . . . . . . Propulsion 4 | . . . . . 1 . . . . . 2 1 Utility 10 | . 1 . . . 3 1 2 2 . . . 1 Weapon . | . . . . . . . . . . . . . Parts Attached 76 | 8 4 1 2 . 4 15 10 5 4 3 11 9 Power 8 | 1 . . . . . 2 1 1 2 . . 1 Engine 6 | 1 . . . . . 2 1 . 2 . . . Core 2 | . . . . . . . . 1 . . . 1 Reactor . | . . . . . . . . . . . . . Propulsion 21 | 2 1 . . . . 3 2 1 . 1 6 5 Treads 10 | 2 1 . . . . 3 2 1 . 1 . . Leg 3 | . . . . . . . . . . . . 3 Wheel . | . . . . . . . . . . . . . Hover . | . . . . . . . . . . . . . Flight 8 | . . . . . . . . . . . 6 2 Utility 30 | 3 3 . 1 . 2 4 4 3 2 1 5 2 Device 6 | . 1 . . . . . 2 1 . . 1 1 Storage 5 | 1 2 . 1 . . . . 1 . . . . Processor 3 | 1 . . . . 1 . 1 . . . . . Hackware 9 | . . . . . 1 2 . 1 1 1 3 . Protection 7 | 1 . . . . . 2 1 . 1 . 1 1 Artifact . | . . . . . . . . . . . . . Weapon 17 | 2 . 1 1 . 2 6 3 . . 1 . 1 Energy Gun 1 | 1 . . . . . . . . . . . . Energy Cannon 1 | . . . . . . . . . . . . 1 Ballistic Gun 4 | 1 . 1 . . 1 . 1 . . . . . Ballistic Cannon . | . . . . . . . . . . . . . Launcher 6 | . . . . . 1 3 1 . . 1 . . Special Weapon 2 | . . . . . . 2 . . . . . . Impact Weapon . | . . . . . . . . . . . . . Slashing Weapon 3 | . . . 1 . . 1 1 . . . . . Piercing Weapon . | . . . . . . . . . . . . . Special Melee Weapon . | . . . . . . . . . . . . . Unidentified Prototypes 4 | . . . 3 . . 1 . . . . . . Parts Lost 46 | . . . . . . 8 8 1 6 3 10 10 Power 6 | . . . . . . 2 1 1 1 1 . . Propulsion 14 | . . . . . . 2 4 . . . 6 2 Utility 16 | . . . . . . 2 1 . 2 2 3 6 Weapon 10 | . . . . . . 2 2 . 3 . 1 2 Highest Loss Streak 10 | . . . . . . 3 3 1 3 2 10 7 To Critical Strikes . | . . . . . . . . . . . . . Average Backups 25 | 5 13 20 18 21 25 32 36 34 32 34 8 4 Power . | . 1 1 . 1 1 1 . . . 1 . . Propulsion 8 | 1 4 8 7 8 10 11 10 9 8 11 2 . Utility 10 | 2 6 8 7 9 8 10 14 15 14 14 3 2 Weapon 5 | . 1 3 2 3 5 8 9 8 6 5 2 1 Tool/Special . | . . . . . . . . . . . . . Unused Backups 27 | . . . 1 . 2 3 7 1 . . 13 . Power 3 | . . . . . . . 1 . . . 2 . Propulsion 13 | . . . . . 1 1 5 1 . . 5 . Utility 7 | . . . 1 . . 1 . . . . 5 . Weapon 4 | . . . . . 1 1 1 . . . 1 . Tool/Special . | . . . . . . . . . . . . . Average Slot Usage (%) 74 | . 99 100 87 75 69 68 72 75 74 82 60 26 Engine 6 | . 12 12 12 12 8 6 5 3 1 10 4 . Treads 14 | . 24 25 25 25 15 15 13 10 11 11 1 . Device 5 | . 12 12 6 . 7 3 6 5 . . 1 . Storage 8 | . 12 12 11 12 8 7 6 10 11 11 1 . Processor 9 | . 12 12 6 . 7 7 12 11 11 11 8 . Hackware 10 | . . . . . 3 9 12 15 20 20 22 17 Protection 3 | . . . . . . 6 5 5 6 6 1 . Energy Gun 1 | . 12 5 . . . . . . . . . . Ballistic Gun 6 | . 12 19 18 25 15 7 1 . . . 2 . Launcher 1 | . . . . . . 1 . 9 4 11 2 . Slashing Weapon 2 | . . . 5 . . 2 6 . 2 . . . Peak Build Rating 91 | 7 10 10 44 38 46 63 71 82 85 91 79 51 Average Rating 48 | 6 8 10 26 37 42 52 67 77 82 89 33 25 On Entrance 41 | . 7 10 10 44 38 46 61 67 81 85 79 16 Avg Prop Armor Cover (%) . | . . . . . . . . . . . . . Naked Turns . | . . . . . . . . . . . . . Heaviest Build 54 | 17 48 49 49 13 17 21 22 29 50 54 35 18 Greatest Support 100 | 40 40 40 40 40 40 60 70 100 100 100 97 76 Greatest Overweight (x) 8 | 2 1 1 1 . . 3 5 . . . 8 2 Average Overweight (x) . | . . 1 . . . . . . . . . . Largest Inventory Capacity 40 | 10 20 20 40 40 40 40 40 40 40 40 40 5 Average Capacity 32 | 8 18 20 29 40 40 40 40 40 40 40 8 5 Most Carried 40 | 9 20 20 21 23 33 38 40 38 37 35 35 5 Average Carried 26 | 5 14 20 18 21 26 33 37 36 33 34 6 4 Final Capacity 40 | 10 20 20 40 40 40 40 40 40 40 40 5 5 Final Carried 39 | 9 20 20 21 23 32 37 39 36 30 35 5 . Class Distribution -------------------- 56% | Hacker-Mutant 24% | Hauler-Mutant 17% | Wizard-Mutant Dominant Class ---------------- Hacker-Mutant | -10/Materials Hacker-Mutant | -10/Mines Hauler-Mutant | -10/Exiles Hauler-Mutant | -9/Mines Hauler-Mutant | -8/Materials Hauler-Mutant | -7/Factory Hacker-Mutant | -6/Factory Hacker-Mutant | -5/Factory Wizard-Mutant | -5/Garrison Wizard-Mutant | -5/Factory Wizard-Sprinter | -4/Factory Wizard-Mutant | -3/Research Resources | -11 -10 -10 -10 -9 -8 -7 -6 -5 -5 -5 -4 -3 ----------- Run | Yrd Mat Min Exi Min Mat Fac Fac Fac Gar Fac Fac Res Matter Collected 2678 | 285 85 . . 73 409 605 199 122 390 234 120 156 Remotely . | . . . . . . . . . . . . . Salvage Created 4146 | 110 574 . . . 365 708 745 104 1040 452 13 35 Parts 231 | 11 36 . . . 21 40 52 7 43 17 1 3 Haulers Intercepted 3 | . 2 . . . . . . . . 1 . . Recyclers Shooed 2 | . . . . . . . . . . 1 . 1 Parts Field Recycled . | . . . . . . . . . . . . . Retrieved Matter . | . . . . . . . . . . . . . Parts Self-Destructed . | . . . . . . . . . . . . . Prevented . | . . . . . . . . . . . . . Parts Restored . | . . . . . . . . . . . . . Kills | -11 -10 -10 -10 -9 -8 -7 -6 -5 -5 -5 -4 -3 ------- Run | Yrd Mat Min Exi Min Mat Fac Fac Fac Gar Fac Fac Res Combat Hostiles Destroyed 86 | . 7 . . . 6 11 15 7 31 8 . 1 Melee 23 | . . . . . . 3 8 . 12 . . . Guns 21 | . 7 . . . 3 5 4 . 1 . . 1 AOE 42 | . . . . . 3 3 3 7 18 8 . . Classes Destroyed 14 | 3 4 . . . 2 2 1 . 2 . . . Worker 9 | 1 2 . . . 2 2 1 . . 1 . . Builder 3 | . . . . . . . 3 . . . . . Tunneler 7 | 2 1 . . . . 2 1 . . 1 . . Hauler 3 | . 2 . . . . . . . . 1 . . Recycler 6 | 1 2 . . . . 2 . . . 1 . . Operator 7 | . . . . . 3 1 2 . . . 1 . Watcher 4 | . 2 . . . . . . . 1 1 . . Swarmer 22 | . 2 . . . . . 3 4 12 . . 1 Cutter 1 | . . . . . . . . . 1 . . . Grunt 36 | . 5 . . . 5 3 6 . 9 8 . . Sentry 10 | . . . . . 1 4 . 1 4 . . . Hunter 6 | . . . . . . 1 3 . 2 . . . Programmer 8 | . . . . . . 3 3 2 . . . . Thug 1 | . . . . . 1 . . . . . . . Butcher 2 | . . . . . . . . . 2 . . . Guerrilla 1 | . . . . . . . . . 1 . . . Best Kill Streak 7 | 2 4 . . . 5 3 4 4 7 6 1 1 Combat Bots Only 6 | . 2 . . . 4 2 3 4 6 4 . 1 Max Kills in Single Turn 4 | 1 1 . . . 2 2 3 2 4 2 1 1 Gunslinging . | . . . . . . . . . . . . . Exploded 4 | . . . . . 1 1 2 2 4 2 . . Melee 1 | . . . . . . 1 1 . 1 . . . Uniques/NPCs Destroyed . | . . . . . . . . . . . . . Combat | -11 -10 -10 -10 -9 -8 -7 -6 -5 -5 -5 -4 -3 -------- Run | Yrd Mat Min Exi Min Mat Fac Fac Fac Gar Fac Fac Res Hostile Shots Fired 884 | . 34 . . 4 18 256 173 14 92 24 65 204 Missed 290 | . 11 . . . 5 90 41 6 20 13 26 78 Hits 594 | . 23 . . 4 13 166 132 8 72 11 39 126 Melee 5 | . . . . . . . . . 3 2 . . Projectile 589 | . 23 . . 4 13 166 132 8 69 9 39 126 AOE 3 | . . . . . . . 2 . . . 1 . Critical Strikes 27 | . 1 . . . 1 1 2 . 6 2 3 11 Part Disruptions 1 | . . . . . . 1 . . . . . . Damage Taken 6928 | . 186 . . 26 165 924 1500 192 1184 202 712 1837 Core 2208 | . 47 . . . . 101 177 36 88 12 438 1309 Absorbed by Shields . | . . . . . . . . . . . . . Redirected to Shielding 10 | . . . . . . . . . . . . 10 Ignored by Resistances 4185 | . 118 . . 18 97 629 892 116 710 116 416 1073 Regen/Repaired (Parts) 504 | . 61 . . . 88 . 167 188 . . . . Core Remaining (%) 84 | 100 . . . 81 100 85 79 . . 86 61 . Volleys Fired 221 | 5 50 . . 2 30 50 29 7 19 12 7 10 Largest 2 | 2 2 . . 2 2 2 1 2 2 2 1 2 Hottest 120 | 60 60 . . 40 53 56 100 66 66 76 20 120 Shots Fired 387 | 10 96 . . 4 60 91 29 14 37 24 7 15 Gun 283 | 10 96 . . 4 54 76 23 . 1 . 7 12 Cannon 3 | . . . . . . . . . . . . 3 Launcher 99 | . . . . . 6 15 4 14 36 24 . . Special 2 | . . . . . . . 2 . . . . . Kinetic 232 | 5 50 . . 4 54 76 23 . 1 . 7 12 Thermal 56 | 5 46 . . . . . 2 . . . . 3 Explosive 99 | . . . . . 6 15 4 14 36 24 . . Electromagnetic . | . . . . . . . . . . . . . Robot Hit Streak 56 | 6 15 . . 9 22 56 17 6 13 10 13 5 Robot Miss Streak 3 | . 3 . . . 1 2 1 1 1 1 1 1 Penetration Max . | . . . . . . . . . . . . . Secondary Targets 1 | . 1 . . . . . . . . . . . Max Gunslinging Chain 1 | . 1 . . . . . . . . . . . Shots Hit Robots 351 | 6 66 . . 4 45 85 47 11 52 17 6 12 Core Hits 253 | 5 31 . . 1 28 41 32 18 58 30 3 6 Critical Kills . | . . . . . . . . . . . . . Critical Parts Destroyed 1 | . . . . . . 1 . . . . . . Critical Strikes 11 | . . . . . . 3 3 . 5 . . . Destroy 1 | . . . . . . 1 . . . . . . Sever 10 | . . . . . . 2 3 . 5 . . . Melee Attacks 76 | . . . . . . 9 28 . 39 . . . Impact . | . . . . . . . . . . . . . Slashing 76 | . . . . . . 9 28 . 39 . . . Piercing . | . . . . . . . . . . . . . Sneak Attacks 14 | . . . . . . 2 6 . 6 . . . Combat Hostiles . | . . . . . . . . . . . . . Follow-up Attacks . | . . . . . . . . . . . . . Damage Inflicted 12534 | 71 673 . . 39 981 1943 2403 728 3536 1869 53 238 Guns 2765 | 71 673 . . 39 493 950 342 . 13 . 53 131 Cannons 83 | . . . . . . . . . . . . 83 Explosions 6101 | . . . . . 482 410 624 728 1988 1869 . . Melee 3518 | . . . . . . 576 1407 . 1535 . . . Ramming 37 | . . . . . 6 7 . . . . . 24 Kinetic 2280 | 14 245 . . 39 493 950 342 . 13 . 53 131 Thermal 968 | 57 428 . . . . . 400 . . . . 83 Explosive 5731 | . . . . . 482 410 254 728 1988 1869 . . Electromagnetic . | . . . . . . . . . . . . . Impact . | . . . . . . . . . . . . . Slashing 3518 | . . . . . . 576 1407 . 1535 . . . Piercing . | . . . . . . . . . . . . . Highest Corruption 14 | . . . . . . 1 3 . . . 3 14 Average Corruption 1 | . . . . . . 1 2 . . . 2 6 Corruption Purged . | . . . . . . . . . . . . . Corruption Blocked . | . . . . . . . . . . . . . Effects 30 | . . . . . . 10 11 . . . 2 7 Message Errors 10 | . . . . . . 3 5 . . . . 2 Matter Fused 7 | . . . . . . 4 2 . . . . 1 Heat Flow Errors 3 | . . . . . . . 1 . . . . 2 Energy Discharges 6 | . . . . . . 2 1 . . . 2 1 Parts Rejected 1 | . . . . . . . . . . . . 1 Data Loss (major) 1 | . . . . . . . 1 . . . . . Alerts 2 | . . . . . . 1 1 . . . . . Overload Shots . | . . . . . . . . . . . . . Overflow Damage 377 | . . . . . . 132 129 10 77 29 . . Projectiles . | . . . . . . . . . . . . . Explosions 142 | . . . . . . . 45 10 58 29 . . Melee 235 | . . . . . . 132 84 . 19 . . . Knockbacks . | . . . . . . . . . . . . . Impact . | . . . . . . . . . . . . . Kinetic . | . . . . . . . . . . . . . Secondary . | . . . . . . . . . . . . . Self-Inflicted Damage 535 | . . . . . . . 133 113 230 48 . 11 Shots 27 | . . . . . . . 5 4 17 1 . . Rammed 9 | . . . . . 2 2 . . . . . 5 Targets Rammed 9 | . . . . . 2 2 . . . . . 5 Kicked . | . . . . . . . . . . . . . Crushed . | . . . . . . . . . . . . . Highest Temperature 188 | 20 94 . . 12 18 9 143 . 27 84 1 188 Average Temperature 29 | 12 32 . . 9 12 4 45 . 9 29 1 67 Received Heat Transfer 1429 | . 156 . . 24 90 309 256 . 396 99 30 69 Siege Activations . | . . . . . . . . . . . . . Martial Activations . | . . . . . . . . . . . . . Shielding Activations . | . . . . . . . . . . . . . Robots Disrupted . | . . . . . . . . . . . . . Combat Hostiles . | . . . . . . . . . . . . . Robots Corrupted . | . . . . . . . . . . . . . Combat Hostiles . | . . . . . . . . . . . . . Parts Fried . | . . . . . . . . . . . . . Impact Corruptions . | . . . . . . . . . . . . . Robots Melted . | . . . . . . . . . . . . . Combat Hostiles . | . . . . . . . . . . . . . Parts Melted . | . . . . . . . . . . . . . Heat Transferred 1474 | 125 975 . . . . . 300 . . . . 74 Parts Sabotaged . | . . . . . . . . . . . . . Parts Stolen . | . . . . . . . . . . . . . Parts Stripped . | . . . . . . . . . . . . . Power Chain Reactions . | . . . . . . . . . . . . . Alert | -11 -10 -10 -10 -9 -8 -7 -6 -5 -5 -5 -4 -3 ------- Run | Yrd Mat Min Exi Min Mat Fac Fac Fac Gar Fac Fac Res Maximum Alert Level 4 | . . . . . . . . 1 4 3 1 . Low Security (%) 83 | 100 100 100 . 100 100 100 100 88 11 . 72 100 Level 1 3 | . . . . . . . . 11 10 5 27 . Level 2 9 | . . . . . . . . . 51 78 . . Level 3 3 | . . . . . . . . . 22 16 . . Level 4 . | . . . . . . . . . 3 . . . Level 5 . | . . . . . . . . . . . . . High Security . | . . . . . . . . . . . . . Max Security . | . . . . . . . . . . . . . Peak Influence 1214 | 10 50 . . . 107 75 140 248 1214 757 254 50 Initial 473 | . . . . . . . . 4 112 473 254 9 Average 108 | 1 3 . . . 10 5 18 44 586 516 148 8 Influence Increases 3703 | 20 242 . . . 215 405 528 344 1162 459 80 248 Destroy 0b10 Robot/C 1720 | . 140 . . . 120 220 300 140 620 160 . 20 Destroy 0b10 Robot/NC 195 | 20 45 . . . 25 35 35 . 5 25 5 . Destroy Leader 312 | . 38 . . . 20 90 80 30 30 24 . . Successful Hack 49 | . 4 . . . 4 . 6 12 20 . . 3 Disable Machine 104 | . . . . . 16 8 28 36 4 12 . . Anti-Garrison Action 250 | . . . . . . . . . 250 . . . Destroy Structure 728 | . . . . . 15 52 64 126 233 238 . . Partial Spotted 45 | . . . . . . . . . . . 30 15 Lose Combat Pursuer 300 | . 15 . . . 15 . 15 . . . 45 210 Influence Decreases 3703 | 20 242 . . . 215 405 514 149 157 966 763 272 Entered New Map 1316 | . . . . . . . . 10 97 741 453 15 Time Decay 2025 | 20 242 . . . 215 348 449 139 . 195 210 207 Lost Part 362 | . . . . . . 57 65 . 60 30 100 50 Squads Dispatched 26 | . . . . 1 4 5 6 3 . 2 1 4 Investigation 3 | . . . . 1 . . . 1 . 1 . . Extermination 10 | . . . . . . 4 3 1 . . . 2 Reinforcement 12 | . . . . . 4 1 3 . . 1 1 2 Assault . | . . . . . . . . . . . . . Garrison 1 | . . . . . . . . 1 . . . . Intercept . | . . . . . . . . . . . . . Searches Triggered . | . . . . . . . . . . . . . Construction Impeded 1 | . . . . . . . 1 . . . . . Haulers Reinforced 1 | . . . . . . . . . . 1 . . Active Scanning Responses . | . . . . . . . . . . . . . Cargo Convoy Interrupts . | . . . . . . . . . . . . . Stealth | -11 -10 -10 -10 -9 -8 -7 -6 -5 -5 -5 -4 -3 --------- Run | Yrd Mat Min Exi Min Mat Fac Fac Fac Gar Fac Fac Res Distress Signals 11 | . 2 . . . 3 1 1 . 1 . 1 2 Communications Jammed . | . . . . . . . . . . . . . Distress Signals . | . . . . . . . . . . . . . Times Spotted 153 | . 21 . . 3 17 15 19 6 29 11 10 22 Peak Tracking Total 11 | . 3 . . 3 4 2 4 4 4 3 8 11 Tactical Retreats 13 | . 1 . . . 1 . 1 . . . 3 7 Traps | -11 -10 -10 -10 -9 -8 -7 -6 -5 -5 -5 -4 -3 ------- Run | Yrd Mat Min Exi Min Mat Fac Fac Fac Gar Fac Fac Res Traps Triggered 10 | . 2 . . . 2 2 1 . 3 . . . Indirectly . | . . . . . . . . . . . . . Trap Hack Attempts . | . . . . . . . . . . . . . Triggered . | . . . . . . . . . . . . . Disarmed 4 | . 4 . . . . . . . . . . . Reprogrammed . | . . . . . . . . . . . . . Reused . | . . . . . . . . . . . . . Traps Extracted . | . . . . . . . . . . . . . Installed . | . . . . . . . . . . . . . Triggered . | . . . . . . . . . . . . . Machines | -11 -10 -10 -10 -9 -8 -7 -6 -5 -5 -5 -4 -3 ---------- Run | Yrd Mat Min Exi Min Mat Fac Fac Fac Gar Fac Fac Res Machines Disabled 29 | . . . . . 4 2 7 9 4 3 . . Max in Single Turn 7 | . . . . . 2 1 7 5 2 1 . . Garrison Relay 5 | . . . . . . . . . 5 . . . Machines Repaired . | . . . . . . . . . . . . . Machines Dismantled . | . . . . . . . . . . . . . Machines Sabotaged . | . . . . . . . . . . . . . Overloaded Fab Kills . | . . . . . . . . . . . . . Hacking | -11 -10 -10 -10 -9 -8 -7 -6 -5 -5 -5 -4 -3 --------- Run | Yrd Mat Min Exi Min Mat Fac Fac Fac Gar Fac Fac Res Machines Accessed 27 | . 4 . 1 1 4 4 3 2 4 1 1 2 Terminals 14 | . 2 . . . 2 2 2 . 4 . 1 1 Fabricators 3 | . . . . . . 2 . . . . . 1 Repair Stations 5 | . 1 . . . 1 . 1 1 . 1 . . Recycling Units 1 | . 1 . . . . . . . . . . . Scanalyzers 1 | . . . . . 1 . . . . . . . Garrison Access 1 | . . . . . . . . 1 . . . . Total Hacks 53 | . 8 . 1 1 7 10 4 5 7 3 3 4 Successful 39 | . 8 . 1 1 6 5 4 4 5 1 1 3 Failed 14 | . . . . . 1 5 . 1 2 2 2 1 Catastrophic 1 | . . . . . . 1 . . . . . . Database Lockouts . | . . . . . . . . . . . . . Manual 18 | . 3 . 4 . 3 1 1 . 1 . 3 2 Terminals 22 | . 3 . . . 2 2 2 . 7 . 3 3 Fabricators 9 | . . . . . . 8 . . . . . 1 Repair Stations 13 | . 2 . . . 2 . 2 4 . 3 . . Recycling Units 3 | . 3 . . . . . . . . . . . Scanalyzers 3 | . . . . . 3 . . . . . . . Garrison Access 1 | . . . . . . . . 1 . . . . Terminal Hacks 15 | . 2 . 1 1 . 1 2 . 5 . 1 2 Record 1 | . . . . . . . . . . . . 1 Open Door 2 | . . . . 1 . . . . 1 . . . Open DSF 2 | . . . . . . 1 1 . . . . . Level Access Points 4 | . . . . . . . 1 . 1 . 1 1 Emergency Access Points 1 | . . . . . . . . . 1 . . . Disarm Traps 1 | . 1 . . . . . . . . . . . Recall Investigation 1 | . 1 . . . . . . . . . . . Garrison Registry 1 | . . . . . . . . . 1 . . . Patrol Navigation 1 | . . . . . . . . . 1 . . . Proto ID Catalog 1 | . . . 1 . . . . . . . . . Fabricator Hacks 5 | . . . . . . 4 . . . . . 1 Load Schematic 2 | . . . . . . 2 . . . . . . Build 3 | . . . . . . 2 . . . . . 1 Repair Station Hacks 10 | . 2 . . . 2 . 2 3 . 1 . . Scan Component 6 | . 1 . . . 1 . 1 2 . 1 . . Repair 4 | . 1 . . . 1 . 1 1 . . . . Recycling Unit Hacks 3 | . 3 . . . . . . . . . . . Process 1 | . 1 . . . . . . . . . . . Report Inventory 1 | . 1 . . . . . . . . . . . Retrieve Matter 1 | . 1 . . . . . . . . . . . Scanalyzer 3 | . . . . . 3 . . . . . . . Insert Component 1 | . . . . . 1 . . . . . . . Analyze 1 | . . . . . 1 . . . . . . . Retrieve Study 1 | . . . . . 1 . . . . . . . Garrison Access Hacks 1 | . . . . . . . . 1 . . . . Unlock Access 1 | . . . . . . . . 1 . . . . Unauthorized Hacks 2 | . 1 . . . 1 . . . . . . . Terminals 2 | . 1 . . . 1 . . . . . . . Operators 2 | . 1 . . . 1 . . . . . . . Fabricators . | . . . . . . . . . . . . . Repair Stations . | . . . . . . . . . . . . . Recycling Units . | . . . . . . . . . . . . . Scanalyzers . | . . . . . . . . . . . . . Garrison Access . | . . . . . . . . . . . . . Data Cores Recovered . | . . . . . . . . . . . . . Used . | . . . . . . . . . . . . . Hacking Detections 16 | . 2 . . . 2 3 . 1 4 1 1 2 Full Trace Events 2 | . . . . . . . . 1 . 1 . . Feedback Events . | . . . . . . . . . . . . . Feedback Blocked . | . . . . . . . . . . . . . Robot Schematics Acquired . | . . . . . . . . . . . . . Robots Built . | . . . . . . . . . . . . . Authchips . | . . . . . . . . . . . . . Time . | . . . . . . . . . . . . . Total Robot Build Rating . | . . . . . . . . . . . . . Part Schematics Acquired 1 | . . . . . 1 . . . . . . . Parts Built 4 | . . . . . . 2 . . . . . 2 Authchips . | . . . . . . . . . . . . . Time 120 | . . . . . . 51 . . . . . 69 Total Part Build Rating 22 | . . . . . . 4 . . . . . 18 Part Studies Acquired . | . . . . . . . . . . . . . Parts Repaired 4 | . 1 . . . 1 . 1 1 . . . . Time 115 | . 26 . . . 26 . 38 25 . . . . Parts Recycled . | . . . . . . . . . . . . . Recycled Matter 139 | . 139 . . . . . . . . . . . Retrieved Matter 379 | . 379 . . . . . . . . . . . Retrieved Components . | . . . . . . . . . . . . . Parts Scanalyzed 1 | . . . . . 1 . . . . . . . Part Schematics Acquired 1 | . . . . . 1 . . . . . . . Parts Damaged . | . . . . . . . . . . . . . Bothacking | -11 -10 -10 -10 -9 -8 -7 -6 -5 -5 -5 -4 -3 ------------ Run | Yrd Mat Min Exi Min Mat Fac Fac Fac Gar Fac Fac Res Used RIF Installer . | . . . . . . . . . . . . . Robots Hacked . | . . . . . . . . . . . . . Non-combat . | . . . . . . . . . . . . . Combat . | . . . . . . . . . . . . . Robot Hacks Applied . | . . . . . . . . . . . . . Relay Couplers Released 20 | . . . . . . . . . 20 . . . Machine Destruction 20 | . . . . . . . . . 20 . . . Fabnet Peak Effective % . | . . . . . . . . . . . . . Robots Rewired . | . . . . . . . . . . . . . Allies Hacked . | . . . . . . . . . . . . . Hacks Repelled . | . . . . . . . . . . . . . Allies | -11 -10 -10 -10 -9 -8 -7 -6 -5 -5 -5 -4 -3 -------- Run | Yrd Mat Min Exi Min Mat Fac Fac Fac Gar Fac Fac Res Total Allies . | . . . . . . . . . . . . . Largest Group . | . . . . . . . . . . . . . Highest-Rated Group . | . . . . . . . . . . . . . Highest-Rated Ally . | . . . . . . . . . . . . . Initial Warlord ECA Mod 7 | . . . . . . . . . . 7 6 5 Total Orders . | . . . . . . . . . . . . . Ally Attacks . | . . . . . . . . . . . . . Total Damage . | . . . . . . . . . . . . . Kills . | . . . . . . . . . . . . . Allies Corrupted . | . . . . . . . . . . . . . Allies Melted . | . . . . . . . . . . . . . Intel | -11 -10 -10 -10 -9 -8 -7 -6 -5 -5 -5 -4 -3 ------- Run | Yrd Mat Min Exi Min Mat Fac Fac Fac Gar Fac Fac Res Active Infowar (turns) 5805 | . 1596 52 275 . 935 975 1617 335 . . 2 18 Traps 1640 | . . . . . . . 1617 23 . . . . Seismic 3833 | . 1596 52 275 . 935 975 . . . . . . ECM 402 | . . . . . . . 47 335 . . 2 18 Robot Analysis Total . | . . . . . . . . . . . . . Derelict Logs Recovered . | . . . . . . . . . . . . . Drone Launches 3 | . . . . . . . . . . . . 3 Drone Recoveries 3 | . . . . . . . . . . . . 3 Exploration | -11 -10 -10 -10 -9 -8 -7 -6 -5 -5 -5 -4 -3 ------------- Run | Yrd Mat Min Exi Min Mat Fac Fac Fac Gar Fac Fac Res Turns Passed 9981 | 161 1596 52 544 69 1001 1859 1618 559 1288 268 286 680 Spaces Moved 5792 | 82 652 22 265 36 517 949 795 307 679 137 577 774 Core 634 | 7 . . . . . 19 5 . . . 78 525 Treads 4426 | 75 652 22 265 36 517 930 790 307 679 137 16 . Legs 187 | . . . . . . . . . . . . 187 Wheels . | . . . . . . . . . . . . . Hover . | . . . . . . . . . . . . . Flight 545 | . . . . . . . . . . . 483 62 Fastest Speed 24 | 50 160 240 160 160 160 160 160 160 160 160 24 40 Average Speed 145 | 155 215 240 194 160 160 161 164 160 160 162 40 72 Slowest Speed 515 | 160 240 240 240 160 160 200 300 160 160 165 515 150 Overloaded Moves . | . . . . . . . . . . . . . Propulsion Burnouts . | . . . . . . . . . . . . . Robots Hopped 12 | . . . . . . . . . . . 4 8 Potential Cave-ins . | . . . . . . . . . . . . . Cave-ins Triggered . | . . . . . . . . . . . . . Time Travels 1 | . . . 1 . . . . . . . . . Exploration Rate (%) 29 | 4 83 9 62 7 44 28 21 13 79 6 13 20 Regions Visited 12 Branch Regions 3 Pre-discovered Areas . | . . . . . . . . . . . . . Known Exits Taken 11 | 1 1 1 1 1 1 1 1 1 . 1 1 . Unknown Exits Taken . | . . . . . . . . . . . . . Scrap Searched . | . . . . . . . . . . . . . Spaces Dug 10 | . . . . . . . 7 . 3 . . . Terrain Destroyed 502 | . . . . . 15 73 62 68 139 145 . . Melee 10 | . . . . . . . 7 . 3 . . . Projectile . | . . . . . . . . . . . . . AOE 492 | . . . . . 15 73 55 68 136 145 . . Terrain Rammed . | . . . . . . . . . . . . . Walls Destroyed . | . . . . . . . . . . . . . Machines Disabled . | . . . . . . . . . . . . . Actions | -11 -10 -10 -10 -9 -8 -7 -6 -5 -5 -5 -4 -3 --------- Run | Yrd Mat Min Exi Min Mat Fac Fac Fac Gar Fac Fac Res Total 6808 | 103 758 22 298 43 630 1160 1017 360 769 155 622 871 Wait 471 | . 39 . . 4 60 110 130 36 19 . 3 70 Move 5754 | 81 651 21 264 35 516 948 794 306 674 136 568 760 Hop 10 | . . . . . . . . . . . 4 6 Pick Up 101 | 9 13 . 23 1 13 15 18 . 3 3 2 1 Fast Attach 42 | 7 1 . 1 . 2 3 1 2 2 . 15 8 Attach 54 | . 2 . 2 . 3 13 10 6 9 1 2 6 Detach 24 | . . . 1 . 1 6 2 2 4 1 7 . Swap 16 | 1 2 1 . 1 3 4 1 1 . 2 . . Drop 30 | . . . 7 . . . 4 . . . 14 5 Fire 221 | 5 50 . . 2 30 50 29 7 19 12 7 10 Melee 76 | . . . . . . 9 28 . 39 . . . Ram 5 | . . . . . . . . . . . . 5 Kick . | . . . . . . . . . . . . . Crush 4 | . . . . . 2 2 . . . . . . Escape Stasis . | . . . . . . . . . . . . . Rewire . | . . . . . . . . . . . . . Trap . | . . . . . . . . . . . . . Miscellaneous . | . . . . . . . . . . . . . Route ------- -11/Scrapyard -10/Materials (discovered 4 exits: *Mat x2 / *Min x2) -10/Mines -10/Exiles -9/Mines -8/Materials (discovered 2 exits: *Fac x2) -7/Factory (discovered 2 exits: *Fac / *Low) -6/Factory (discovered 4 exits: *Fac x4) -5/Factory -5/Garrison (discovered 3 exits: *Fac x3) -5/Factory -4/Factory (discovered 4 exits: *Res x4) -3/Research (discovered 3 exits: Res x3) History --------- Turn | Location | Event 15 | -11/Scrapyard | Identified exit to Materials 15 | -11/Scrapyard | Discovered exit to Materials (range 16) 162 | -11/Scrapyard | Entered Materials 162 | -10/Materials | Evolved 1 slot: Utility x1 165 | -10/Materials | Identified exit to Mines 165 | -10/Materials | Discovered exit to Mines (range 14) 305 | -10/Materials | Build established: Hacker-Mutant 551 | -10/Materials | Identified exit to Materials 551 | -10/Materials | Discovered exit to Materials (range 9) 1252 | -10/Materials | Discovered exit to Materials (range 10) 1315 | -10/Materials | Repaired Lgt. Treads 1697 | -10/Materials | Discovered exit to Mines (range 15) 1758 | -10/Materials | Entered Mines 1798 | -10/Mines | Deemed a non-threat by the Exiles lab entrance 1801 | -10/Mines | Identified exit to Exiles 1801 | -10/Mines | Discovered exit to Exiles (range 5) 1810 | -10/Mines | Entered Exiles 1868 | -10/Exiles | Met 8R-AWN 1911 | -10/Exiles | Met EX-HEX 1981 | -10/Exiles | Met EX-BIN 2007 | -10/Exiles | Aligned with FarCom system 2010 | -10/Exiles | Given EX-Vault access code 2070 | -10/Exiles | Opened EX-Vault 2083 | -10/Exiles | Found Prototype Storage 2086 | -10/Exiles | Identified Lightpack 2.0 2091 | -10/Exiles | Found Prototype Slashing Weapon 2093 | -10/Exiles | Identified Longsword +1 2097 | -10/Exiles | Found Prototype Device 2099 | -10/Exiles | Identified Chronowheel 2099 | -10/Exiles | Activated Chronowheel 2099 | -10/Exiles | Spacetime reconverged on an earlier point 2235 | -10/Exiles | Warned to stay clear of 0b10 Research branches 2285 | -10/Exiles | Met EX-DEC 2341 | -10/Exiles | Identified exit to Mines 2341 | -10/Exiles | Discovered exit to Mines (range 10) 2354 | -10/Exiles | Stole two prototypes: Longsword +1, Lightpack 2.0 2354 | -10/Exiles | Entered Mines 2364 | -9/Mines | Identified exit to Materials 2364 | -9/Mines | Discovered exit to Materials (range 6) 2378 | -9/Mines | Met a Derelict shopkeep closing up shop 2394 | -9/Mines | Build established: Hauler-Mutant 2423 | -9/Mines | Entered Materials 2423 | -8/Materials | Evolved 4 slots: Propulsion x1, Utility x3 3079 | -8/Materials | Identified exit to Factory 3079 | -8/Materials | Discovered exit to Factory (range 9) 3367 | -8/Materials | Repaired Lgt. Treads 3373 | -8/Materials | Discovered exit to Factory (range 16) 3424 | -8/Materials | Entered Factory 3424 | -7/Factory | Evolved 2 slots: Power x1, Utility x1 3426 | -7/Factory | FarCom data flow suspended 4369 | -7/Factory | Identified exit to Lower Caves 4369 | -7/Factory | Discovered exit to Lower Caves (range 15) 4433 | -7/Factory | Lost 3 parts (1n2u) 4545 | -7/Factory | Lost 3 parts (1p1n1w) 4611 | -7/Factory | Fabricated Rocket Launcher (x1) 4857 | -7/Factory | Build established: Hacker-Mutant 4872 | -7/Factory | Fabricated Rocket Launcher (x1) 5175 | -7/Factory | Found Prototype Launcher 5176 | -7/Factory | Identified Rocket Array 5228 | -7/Factory | Identified exit to Factory 5228 | -7/Factory | Discovered exit to Factory (range 4) 5283 | -7/Factory | Entered another Factory area 5283 | -6/Factory | Evolved 2 slots: Utility x2 5677 | -6/Factory | Repaired Imp. Light Armor Plating 5781 | -6/Factory | Lost 3 parts (2n1w) 6112 | -6/Factory | Identified exit to Factory 6901 | -6/Factory | Entered another Factory area 6901 | -5/Factory | Evolved 2 slots: Utility x2 7344 | -5/Factory | Repaired Imp. Medium Treads 7389 | -5/Factory | Garrison activated, responded to threat 7458 | -5/Factory | Identified exit to Garrison 7460 | -5/Factory | Entered Garrison 7686 | -5/Garrison | Triggered checkpoint 7738 | -5/Garrison | Triggered checkpoint 7741 | -5/Garrison | Triggered checkpoint 7773 | -5/Garrison | Build established: Wizard-Mutant 7877 | -5/Garrison | Garrison Relay disabled 7918 | -5/Garrison | Triggered checkpoint 7936 | -5/Garrison | Identified exit to Factory 7936 | -5/Garrison | Discovered exit to Factory (range 10) 7988 | -5/Garrison | Attempted to access garrison exit controls, blocked by remote lockdown 8338 | -5/Garrison | Attempted to access garrison exit controls, blocked by remote lockdown 8395 | -5/Garrison | Garrison Relay disabled 8412 | -5/Garrison | Garrison Relay disabled 8412 | -5/Garrison | Garrison Relay disabled 8449 | -5/Garrison | Lost 3 parts (1p1u1w) 8578 | -5/Garrison | Triggered checkpoint 8610 | -5/Garrison | Discovered exit to Factory (range 68) 8610 | -5/Garrison | Discovered exit to Factory (range 12) 8610 | -5/Garrison | Discovered exit to Factory (range 65) 8664 | -5/Garrison | Triggered checkpoint 8712 | -5/Garrison | Build established: Hacker-Mutant 8748 | -5/Garrison | Entered Factory 8991 | -5/Factory | Identified exit to Factory 8991 | -5/Factory | Discovered exit to Factory (range 16) 9016 | -5/Factory | Entered another Factory area 9016 | -4/Factory | Evolved 2 slots: Propulsion x2 9160 | -4/Factory | Identified exit to Research 9294 | -4/Factory | Lost 10 parts (6n3u1w) 9302 | -4/Factory | Entered Research 9302 | -3/Research | Evolved 2 slots: Propulsion x1, Utility x1 9435 | -3/Research | Fabricated Enh. Nova Cannon (x2) 9476 | -3/Research | Build established: Wizard-Mutant 9642 | -3/Research | Identified exit to Research 9811 | -3/Research | Core integrity fell below 50% 9823 | -3/Research | Lost 7 parts (2n3u2w) 9940 | -3/Research | System corruption reached 10% 9942 | -3/Research | Core integrity fell below 20% 9982 | -3/Research | Destroyed by P-80 Master with Gamma Rifle Last Messages --------------- Hacking Suite destroyed. Door malfunctions. P-80 Master resets P-80 Master, system corruption cleaned. U-05 Engineer repairs door. Mni. Drone Bay destroyed. H3FY=VO&,A0R